[Event "*** Titled Tuesday Blitz"]
[Site "Chess.com"]
[Date "2021.02.16"]
[Round "1"]
[White "StockholmMissile"]
[Black "SophieNikoladze"]
[Result "1-0"]
[WhiteElo "2519"]
[BlackElo "2179"]
[TimeControl "180+1"]
[EndTime "10:02:45 PST"]
[Termination "StockholmMissile won by resignation"]

1. d4 {[%clk 0:03:00.9]} 1... b5 {[%clk 0:02:58.7]} 2. e4 {[%clk 0:03:00.6]}
2... Bb7 {[%clk 0:02:58.6]} 3. Bxb5 {[%clk 0:03:00.6]} 3... Bxe4 {[%clk
0:02:58]} 4. Nf3 {[%clk 0:03:01.1]} 4... Nf6 {[%clk 0:02:56.8]} 5. O-O {[%clk
0:03:00.2]} 5... e6 {[%clk 0:02:57]} 6. c4 {[%clk 0:02:58.6]} 6... c5 {[%clk
0:02:56.9]} 7. Nc3 {[%clk 0:02:57.3]} 7... cxd4 {[%clk 0:02:56.5]} 8. Nxe4
{[%clk 0:02:55.1]} 8... Nxe4 {[%clk 0:02:56.1]} 9. Qxd4 {[%clk 0:02:53.8]} 9...
Nf6 {[%clk 0:02:52.1]} 10. Bf4 {[%clk 0:02:45.5]} 10... Be7 {[%clk 0:02:51.1]}
11. Rfd1 {[%clk 0:02:38.7]} 11... a6 {[%clk 0:02:47.4]} 12. Ba4 {[%clk
0:02:31.4]} 12... Qa5 {[%clk 0:02:46.7]} 13. b3 {[%clk 0:02:23]} 13... O-O
{[%clk 0:02:41.9]} 14. Bd6 {[%clk 0:02:17.9]} 14... Bxd6 {[%clk 0:02:37.6]} 15.
Qxd6 {[%clk 0:02:18.8]} 15... Ne8 {[%clk 0:02:33.9]} 16. Qe7 {[%clk 0:02:11.6]}
16... Nc6 {[%clk 0:02:27.7]} 17. Qxd7 {[%clk 0:02:06.8]} 17... Nb4 {[%clk
0:02:23.3]} 18. a3 {[%clk 0:02:02.4]} 18... Nf6 {[%clk 0:02:18.5]} 19. Qd2
{[%clk 0:02:00.4]} 19... Rad8 {[%clk 0:02:15.4]} 20. Qxb4 {[%clk 0:01:58.4]} 1-0

[Event "*** Titled Tuesday Blitz"]
[Site "Chess.com"]
[Date "2021.02.16"]
[Round "1"]
[White "thechesscorner64"]
[Black "A-Fier"]
[Result "0-1"]
[WhiteElo "2418"]
[BlackElo "2803"]
[TimeControl "180+1"]
[EndTime "10:03:07 PST"]
[Termination "A-Fier won by resignation"]

1. e4 {[%clk 0:03:00.9]} 1... c5 {[%clk 0:02:59.8]} 2. Nf3 {[%clk 0:03:00.2]}
2... e6 {[%clk 0:02:59.8]} 3. d4 {[%clk 0:02:59.7]} 3... cxd4 {[%clk 0:03:00.7]}
4. Nxd4 {[%clk 0:02:59.9]} 4... Nf6 {[%clk 0:03:00.2]} 5. Bd3 {[%clk 0:02:58.5]}
5... d6 {[%clk 0:03:01.1]} 6. c4 {[%clk 0:02:57.7]} 6... Be7 {[%clk 0:03:01.3]}
7. Nc3 {[%clk 0:02:57.7]} 7... Nc6 {[%clk 0:03:01.7]} 8. Be3 {[%clk 0:02:57.8]}
8... O-O {[%clk 0:03:01.8]} 9. Rc1 {[%clk 0:02:56.3]} 9... Ne5 {[%clk
0:03:01.6]} 10. f3 {[%clk 0:02:48]} 10... Nxd3+ {[%clk 0:03:01.4]} 11. Qxd3
{[%clk 0:02:47.6]} 11... Bd7 {[%clk 0:03:02.3]} 12. O-O {[%clk 0:02:46.9]} 12...
a6 {[%clk 0:03:01.7]} 13. a4 {[%clk 0:02:40.3]} 13... Rc8 {[%clk 0:03:01.9]} 14.
Kh1 {[%clk 0:02:36.9]} 14... Qa5 {[%clk 0:03:01.6]} 15. b3 {[%clk 0:02:31.2]}
15... Rfd8 {[%clk 0:02:59.6]} 16. Bd2 {[%clk 0:02:19.3]} 16... Qe5 {[%clk
0:02:57.7]} 17. f4 {[%clk 0:02:10]} 17... Qh5 {[%clk 0:02:58]} 18. Qf3 {[%clk
0:02:09.8]} 18... Qxf3 {[%clk 0:02:57.8]} 19. Nxf3 {[%clk 0:02:06.4]} 19... Bc6
{[%clk 0:02:54.6]} 20. Rfe1 {[%clk 0:02:05.9]} 20... Nd7 {[%clk 0:02:53.8]} 21.
b4 {[%clk 0:02:01.1]} 21... b6 {[%clk 0:02:53.7]} 22. b5 {[%clk 0:02:00.9]}
22... Bb7 {[%clk 0:02:53.2]} 23. f5 {[%clk 0:01:55.8]} 23... Nc5 {[%clk
0:02:52.3]} 24. fxe6 {[%clk 0:01:38.9]} 24... fxe6 {[%clk 0:02:52.3]} 25. Bg5
{[%clk 0:01:37.9]} 25... Bxg5 {[%clk 0:02:51.9]} 26. Nxg5 {[%clk 0:01:38]} 26...
h6 {[%clk 0:02:50.5]} 27. Nf3 {[%clk 0:01:32.8]} 27... Nd3 {[%clk 0:02:50.6]}
28. Red1 {[%clk 0:01:30.2]} 28... Nxc1 {[%clk 0:02:50.4]} 29. Rxc1 {[%clk
0:01:31.1]} 29... Rxc4 {[%clk 0:02:50.9]} 30. Kg1 {[%clk 0:01:30.4]} 30... Rdc8
{[%clk 0:02:50.4]} 0-1

[Event "*** Titled Tuesday Blitz"]
[Site "Chess.com"]
[Date "2021.02.16"]
[Round "1"]
[White "ZEN-22"]
[Black "joppie2"]
[Result "0-1"]
[WhiteElo "2467"]
[BlackElo "2991"]
[TimeControl "180+1"]
[EndTime "10:03:29 PST"]
[Termination "joppie2 won by resignation"]

1. e4 {[%clk 0:02:55]} 1... c6 {[%clk 0:03:00.9]} 2. d4 {[%clk 0:02:53.7]} 2...
d5 {[%clk 0:03:01.8]} 3. Bg5 {[%clk 0:02:53.5]} 3... dxe4 {[%clk 0:03:01.5]} 4.
Nc3 {[%clk 0:02:52.6]} 4... Nf6 {[%clk 0:02:58.1]} 5. Bc4 {[%clk 0:02:51.4]}
5... Bf5 {[%clk 0:02:56.8]} 6. f3 {[%clk 0:02:51.2]} 6... exf3 {[%clk
0:02:54.2]} 7. Nxf3 {[%clk 0:02:51.2]} 7... e6 {[%clk 0:02:54.7]} 8. Qe2 {[%clk
0:02:41.8]} 8... Be7 {[%clk 0:02:50.9]} 9. Ne5 {[%clk 0:02:38.5]} 9... Nbd7
{[%clk 0:02:49.2]} 10. Bb3 {[%clk 0:02:32.1]} 10... Nxe5 {[%clk 0:02:48.6]} 11.
dxe5 {[%clk 0:02:25.2]} 11... Nd5 {[%clk 0:02:49]} 12. Bxe7 {[%clk 0:02:23.4]}
12... Qxe7 {[%clk 0:02:46.5]} 13. Nxd5 {[%clk 0:02:15.3]} 13... exd5 {[%clk
0:02:46.3]} 14. O-O {[%clk 0:02:13.7]} 14... Be4 {[%clk 0:02:44.3]} 15. Qh5
{[%clk 0:02:09.9]} 15... O-O {[%clk 0:02:41.1]} 16. Rae1 {[%clk 0:02:05.2]}
16... Rae8 {[%clk 0:02:39.8]} 17. Rxe4 {[%clk 0:01:49.3]} 17... dxe4 {[%clk
0:02:40.7]} 18. Rf4 {[%clk 0:01:43.3]} 18... g6 {[%clk 0:02:39.2]} 19. Qh6
{[%clk 0:01:39.2]} 19... Qc5+ {[%clk 0:02:39.3]} 20. Kf1 {[%clk 0:01:38.2]}
20... Qxe5 {[%clk 0:02:37.3]} 21. Rh4 {[%clk 0:01:19]} 21... Qg7 {[%clk
0:02:37.3]} 22. Qe3 {[%clk 0:01:17.8]} 22... Qxb2 {[%clk 0:02:37.1]} 23. Rxe4
{[%clk 0:01:11.4]} 23... Rxe4 {[%clk 0:02:35.9]} 24. Qxe4 {[%clk 0:01:11.7]}
24... Qf6+ {[%clk 0:02:36.8]} 25. Kg1 {[%clk 0:01:10.6]} 25... Kg7 {[%clk
0:02:37.7]} 26. h4 {[%clk 0:01:10]} 26... Rd8 {[%clk 0:02:38.2]} 27. h5 {[%clk
0:01:09.6]} 27... Qd4+ {[%clk 0:02:38]} 0-1

[Event "*** Titled Tuesday Blitz"]
[Site "Chess.com"]
[Date "2021.02.16"]
[Round "1"]
[White "AustrianFalcon"]
[Black "fish7728"]
[Result "1-0"]
[WhiteElo "2533"]
[BlackElo "2199"]
[TimeControl "180+1"]
[EndTime "10:03:33 PST"]
[Termination "AustrianFalcon won by resignation"]

1. e4 {[%clk 0:02:58.8]} 1... c5 {[%clk 0:03:00]} 2. Nf3 {[%clk 0:02:55.9]} 2...
e6 {[%clk 0:03:00.4]} 3. d4 {[%clk 0:02:54.7]} 3... cxd4 {[%clk 0:03:01.3]} 4.
Nxd4 {[%clk 0:02:55.6]} 4... a6 {[%clk 0:03:01.9]} 5. c4 {[%clk 0:02:54.1]} 5...
Qc7 {[%clk 0:03:02.8]} 6. Nc3 {[%clk 0:02:53.7]} 6... Nf6 {[%clk 0:03:03.3]} 7.
Be2 {[%clk 0:02:53.5]} 7... Be7 {[%clk 0:03:03.4]} 8. Be3 {[%clk 0:02:50.6]}
8... O-O {[%clk 0:03:03.5]} 9. g4 {[%clk 0:02:50.9]} 9... d6 {[%clk 0:03:03.5]}
10. g5 {[%clk 0:02:49.3]} 10... Nfd7 {[%clk 0:03:02.8]} 11. h4 {[%clk
0:02:49.3]} 11... Nc6 {[%clk 0:02:58.4]} 12. Qd2 {[%clk 0:02:47.9]} 12... Rd8
{[%clk 0:02:08.4]} 13. h5 {[%clk 0:02:42.5]} 13... g6 {[%clk 0:02:04.7]} 14.
hxg6 {[%clk 0:02:38]} 14... hxg6 {[%clk 0:02:04.8]} 15. O-O-O {[%clk 0:02:34.2]}
15... Bf8 {[%clk 0:02:05]} 16. f4 {[%clk 0:02:22.3]} 16... Bg7 {[%clk
0:02:03.3]} 17. f5 {[%clk 0:02:22.5]} 17... Nxd4 {[%clk 0:01:53.7]} 18. Bxd4
{[%clk 0:02:21.2]} 18... Ne5 {[%clk 0:01:54.2]} 19. f6 {[%clk 0:02:15]} 19... b5
{[%clk 0:01:26.5]} 20. fxg7 {[%clk 0:02:12.1]} 20... Kxg7 {[%clk 0:01:26.6]} 21.
Qf4 {[%clk 0:02:04.3]} 1-0

[Event "*** Titled Tuesday Blitz"]
[Site "Chess.com"]
[Date "2021.02.16"]
[Round "1"]
[White "LileKoridze"]
[Black "jacky72"]
[Result "0-1"]
[WhiteElo "2372"]
[BlackElo "2696"]
[TimeControl "180+1"]
[EndTime "10:03:34 PST"]
[Termination "jacky72 won by resignation"]

1. d4 {[%clk 0:03:00.9]} 1... Nf6 {[%clk 0:02:59.3]} 2. c4 {[%clk 0:02:59.2]}
2... g6 {[%clk 0:02:58.9]} 3. Nc3 {[%clk 0:02:55.4]} 3... Bg7 {[%clk 0:02:59.4]}
4. e4 {[%clk 0:02:54.9]} 4... O-O {[%clk 0:03:00.3]} 5. Nf3 {[%clk 0:02:55.2]}
5... d6 {[%clk 0:03:00.3]} 6. Be2 {[%clk 0:02:55.6]} 6... Na6 {[%clk 0:03:00.9]}
7. O-O {[%clk 0:02:55.1]} 7... e5 {[%clk 0:03:00.7]} 8. Be3 {[%clk 0:02:53.6]}
8... c6 {[%clk 0:03:00.6]} 9. a3 {[%clk 0:02:42.4]} 9... exd4 {[%clk 0:02:57.7]}
10. Nxd4 {[%clk 0:02:41.2]} 10... Re8 {[%clk 0:02:58.2]} 11. Qc2 {[%clk
0:02:40.6]} 11... Qe7 {[%clk 0:02:51.1]} 12. f3 {[%clk 0:02:39.3]} 12... d5
{[%clk 0:02:51.4]} 13. Bg5 {[%clk 0:02:28.7]} 13... Qc5 {[%clk 0:02:27.6]} 14.
Be3 {[%clk 0:02:20]} 14... dxe4 {[%clk 0:01:44]} 15. fxe4 {[%clk 0:02:14.7]}
15... Ng4 {[%clk 0:01:32.4]} 16. Bxg4 {[%clk 0:02:12.3]} 16... Bxd4 {[%clk
0:01:32.8]} 0-1

[Event "*** Titled Tuesday Blitz"]
[Site "Chess.com"]
[Date "2021.02.16"]
[Round "1"]
[White "Chessbard1972"]
[Black "Sankalp_Gupta2003"]
[Result "0-1"]
[WhiteElo "2383"]
[BlackElo "2716"]
[TimeControl "180+1"]
[EndTime "10:03:57 PST"]
[Termination "Sankalp_Gupta2003 won by checkmate"]

1. e4 {[%clk 0:03:00.9]} 1... c6 {[%clk 0:02:59.3]} 2. d4 {[%clk 0:02:59]} 2...
d5 {[%clk 0:02:59.9]} 3. e5 {[%clk 0:02:59.2]} 3... Bf5 {[%clk 0:03:00]} 4. Nf3
{[%clk 0:02:57.8]} 4... e6 {[%clk 0:03:00.3]} 5. Be2 {[%clk 0:02:56.4]} 5... Nd7
{[%clk 0:03:00]} 6. Nc3 {[%clk 0:02:55.7]} 6... Ne7 {[%clk 0:02:59.2]} 7. Be3
{[%clk 0:02:55.4]} 7... h6 {[%clk 0:02:59.1]} 8. h3 {[%clk 0:02:54.5]} 8... Bh7
{[%clk 0:02:59.5]} 9. g4 {[%clk 0:02:53.7]} 9... Ng6 {[%clk 0:02:59.4]} 10. h4
{[%clk 0:02:50.9]} 10... Be7 {[%clk 0:02:55.6]} 11. h5 {[%clk 0:02:48.3]} 11...
Nh4 {[%clk 0:02:55.8]} 12. Nxh4 {[%clk 0:02:46.5]} 12... Bxh4 {[%clk 0:02:56.7]}
13. Qd2 {[%clk 0:02:44.1]} 13... c5 {[%clk 0:02:54.2]} 14. O-O-O {[%clk
0:02:40]} 14... c4 {[%clk 0:02:52]} 15. f4 {[%clk 0:02:38.9]} 15... Be7 {[%clk
0:02:51.6]} 16. f5 {[%clk 0:02:34.1]} 16... Qa5 {[%clk 0:02:40.4]} 17. fxe6
{[%clk 0:02:17.6]} 17... fxe6 {[%clk 0:02:41.3]} 18. g5 {[%clk 0:02:17.5]} 18...
Bf5 {[%clk 0:02:29.4]} 19. gxh6 {[%clk 0:02:13.9]} 19... gxh6 {[%clk 0:02:30.3]}
20. Bxh6 {[%clk 0:02:08.7]} 20... b5 {[%clk 0:02:30.6]} 21. Bg7 {[%clk
0:02:05.4]} 21... Rh7 {[%clk 0:02:30.6]} 22. h6 {[%clk 0:02:04.4]} 22... b4
{[%clk 0:02:30.5]} 23. Bh5+ {[%clk 0:02:03.8]} 23... Kd8 {[%clk 0:02:29.5]} 24.
Nb1 {[%clk 0:02:01.5]} 24... Qxa2 {[%clk 0:02:29.2]} 25. Rhg1 {[%clk 0:01:43]}
25... c3 {[%clk 0:02:29.1]} 26. bxc3 {[%clk 0:01:25.6]} 26... b3 {[%clk
0:02:29.1]} 27. Qg2 {[%clk 0:00:56.5]} 27... bxc2 {[%clk 0:02:23.4]} 28. Nd2
{[%clk 0:00:53.5]} 28... Ba3# {[%clk 0:02:22.8]} 0-1

[Event "*** Titled Tuesday Blitz"]
[Site "Chess.com"]
[Date "2021.02.16"]
[Round "1"]
[White "ural58"]
[Black "j2806"]
[Result "1-0"]
[WhiteElo "2499"]
[BlackElo "2105"]
[TimeControl "180+1"]
[EndTime "10:04:14 PST"]
[Termination "ural58 won by resignation"]

1. e4 {[%clk 0:02:47.5]} 1... c5 {[%clk 0:02:59.9]} 2. b3 {[%clk 0:02:46.7]}
2... d5 {[%clk 0:02:57.3]} 3. exd5 {[%clk 0:02:46]} 3... Qxd5 {[%clk 0:02:57.4]}
4. Nc3 {[%clk 0:02:46.1]} 4... Qd8 {[%clk 0:02:55.4]} 5. Bb2 {[%clk 0:02:40.8]}
5... Nf6 {[%clk 0:02:55.4]} 6. Bb5+ {[%clk 0:02:38.8]} 6... Bd7 {[%clk
0:02:54.9]} 7. Qe2 {[%clk 0:02:37.6]} 7... e6 {[%clk 0:02:53.2]} 8. O-O-O {[%clk
0:02:35.9]} 8... Be7 {[%clk 0:02:49.7]} 9. d4 {[%clk 0:02:35.1]} 9... cxd4
{[%clk 0:02:49.6]} 10. Rxd4 {[%clk 0:02:33.3]} 10... a6 {[%clk 0:02:46.5]} 11.
Bxd7+ {[%clk 0:02:32.9]} 11... Nbxd7 {[%clk 0:02:46.5]} 12. Nf3 {[%clk
0:02:32.9]} 12... Qc7 {[%clk 0:02:46.1]} 13. Rhd1 {[%clk 0:02:32.7]} 13... O-O
{[%clk 0:02:43.2]} 14. Ne4 {[%clk 0:02:28.6]} 14... Nc5 {[%clk 0:02:30.6]} 15.
Nxc5 {[%clk 0:02:24.5]} 15... Qxc5 {[%clk 0:02:23.3]} 16. Rc4 {[%clk 0:02:23.9]}
16... Qa5 {[%clk 0:02:21.5]} 17. Kb1 {[%clk 0:02:21.3]} 17... b5 {[%clk
0:02:16.2]} 18. Rh4 {[%clk 0:02:16.8]} 18... Nd5 {[%clk 0:02:07.2]} 19. Rxd5
{[%clk 0:01:53.2]} 19... exd5 {[%clk 0:01:59.5]} 20. Qxe7 {[%clk 0:01:51.3]}
20... Rfe8 {[%clk 0:01:50.8]} 21. Qb4 {[%clk 0:01:50.4]} 21... Qb6 {[%clk
0:01:45.8]} 22. Qd4 {[%clk 0:01:49.6]} 22... Qxd4 {[%clk 0:01:43.9]} 23. Bxd4
{[%clk 0:01:49.2]} 23... f6 {[%clk 0:01:42.7]} 24. Be3 {[%clk 0:01:47.1]} 24...
h6 {[%clk 0:01:38]} 25. Rd4 {[%clk 0:01:46.8]} 25... Rad8 {[%clk 0:01:37.6]} 26.
Kb2 {[%clk 0:01:46.5]} 26... Kf7 {[%clk 0:01:38]} 27. h3 {[%clk 0:01:45.7]}
27... Ke6 {[%clk 0:01:37.7]} 28. Bd2 {[%clk 0:01:45.4]} 28... Kf5 {[%clk
0:01:31.1]} 29. Rd3 {[%clk 0:01:45.2]} 29... Re2 {[%clk 0:01:26.9]} 30. Nd4+
{[%clk 0:01:44.8]} 1-0

[Event "*** Titled Tuesday Blitz"]
[Site "Chess.com"]
[Date "2021.02.16"]
[Round "1"]
[White "Doudou2015"]
[Black "Moultino06"]
[Result "0-1"]
[WhiteElo "2050"]
[BlackElo "2486"]
[TimeControl "180+1"]
[EndTime "10:04:16 PST"]
[Termination "Moultino06 won by resignation"]

1. Nf3 {[%clk 0:01:09.8]} 1... d5 {[%clk 0:02:54]} 2. g4 {[%clk 0:01:10.7]} 2...
Bxg4 {[%clk 0:02:53.3]} 3. Rg1 {[%clk 0:01:10.8]} 3... Bxf3 {[%clk 0:02:49.4]}
4. exf3 {[%clk 0:01:11.7]} 4... e5 {[%clk 0:02:49.8]} 5. d4 {[%clk 0:01:11.8]}
5... exd4 {[%clk 0:02:38]} 6. Qxd4 {[%clk 0:01:12.7]} 6... Nc6 {[%clk
0:02:36.3]} 7. Qa4 {[%clk 0:01:06.9]} 7... Qe7+ {[%clk 0:02:19]} 8. Be2 {[%clk
0:01:03.5]} 8... O-O-O {[%clk 0:02:14.8]} 9. Bf4 {[%clk 0:01:02.7]} 9... Nf6
{[%clk 0:02:08.7]} 10. Nd2 {[%clk 0:01:00.6]} 10... Re8 {[%clk 0:02:04.1]} 11.
O-O-O {[%clk 0:00:23.3]} 11... Qxe2 {[%clk 0:02:02.4]} 12. Rge1 {[%clk
0:00:23.5]} 12... Qxe1 {[%clk 0:02:01.7]} 0-1

[Event "*** Titled Tuesday Blitz"]
[Site "Chess.com"]
[Date "2021.02.16"]
[Round "1"]
[White "Novoselski"]
[Black "InvisibleWarrior2252"]
[Result "1/2-1/2"]
[WhiteElo "2298"]
[BlackElo "2585"]
[TimeControl "180+1"]
[EndTime "10:04:21 PST"]
[Termination "Game drawn by agreement"]

1. e4 {[%clk 0:02:58.7]} 1... c5 {[%clk 0:02:59]} 2. Nf3 {[%clk 0:02:57.7]} 2...
Nc6 {[%clk 0:02:58.5]} 3. Nc3 {[%clk 0:02:56.7]} 3... g6 {[%clk 0:02:55.8]} 4.
Bc4 {[%clk 0:02:55.8]} 4... Bg7 {[%clk 0:02:54.6]} 5. O-O {[%clk 0:02:55]} 5...
d6 {[%clk 0:02:53]} 6. d3 {[%clk 0:02:54.2]} 6... Nf6 {[%clk 0:02:52.2]} 7. h3
{[%clk 0:02:53.1]} 7... O-O {[%clk 0:02:50.3]} 8. a3 {[%clk 0:02:53.2]} 8... a6
{[%clk 0:02:48.7]} 9. Ba2 {[%clk 0:02:52.8]} 9... b5 {[%clk 0:02:47.5]} 10. Be3
{[%clk 0:02:52.5]} 10... Bb7 {[%clk 0:02:47]} 11. Qd2 {[%clk 0:02:52.2]} 11...
e5 {[%clk 0:02:26.3]} 12. Bg5 {[%clk 0:02:48.8]} 12... Nd4 {[%clk 0:02:13.2]}
13. Nxd4 {[%clk 0:02:46.6]} 13... cxd4 {[%clk 0:02:10.8]} 14. Nd5 {[%clk
0:02:47.5]} 14... Bxd5 {[%clk 0:02:10.7]} 15. Bxd5 {[%clk 0:02:46.1]} 15... Ra7
{[%clk 0:01:54.9]} 16. f4 {[%clk 0:02:43.7]} 16... h6 {[%clk 0:01:53]} 17. Bxf6
{[%clk 0:02:36.4]} 17... Qxf6 {[%clk 0:01:41]} 18. fxe5 {[%clk 0:02:35.5]} 18...
Qxe5 {[%clk 0:01:41.1]} 19. Rf3 {[%clk 0:02:33.7]} 19... Qg5 {[%clk 0:01:35.7]}
20. Qxg5 {[%clk 0:02:13.6]} 20... hxg5 {[%clk 0:01:35.3]} 21. Rg3 {[%clk
0:02:13.1]} 21... Bf6 {[%clk 0:01:21.8]} 22. Rf1 {[%clk 0:02:09.6]} 22... Kg7
{[%clk 0:01:22]} 23. Ra1 {[%clk 0:01:44.3]} 23... Rc7 {[%clk 0:01:18.6]} 24. Bb3
{[%clk 0:01:43.2]} 24... a5 {[%clk 0:01:08.7]} 25. a4 {[%clk 0:01:42.4]} 25...
b4 {[%clk 0:01:08.6]} 1/2-1/2

[Event "*** Titled Tuesday Blitz"]
[Site "Chess.com"]
[Date "2021.02.16"]
[Round "1"]
[White "Kanthecarowin"]
[Black "vovachesss"]
[Result "0-1"]
[WhiteElo "2352"]
[BlackElo "2658"]
[TimeControl "180+1"]
[EndTime "10:04:23 PST"]
[Termination "vovachesss won by resignation"]

1. d4 {[%clk 0:03:00.1]} 1... Nf6 {[%clk 0:02:56.3]} 2. c4 {[%clk 0:02:59.4]}
2... e6 {[%clk 0:02:53.7]} 3. Nc3 {[%clk 0:02:58.2]} 3... Bb4 {[%clk 0:02:52.2]}
4. Qc2 {[%clk 0:02:57.6]} 4... O-O {[%clk 0:02:50.7]} 5. e4 {[%clk 0:02:57.3]}
5... d6 {[%clk 0:02:47.9]} 6. a3 {[%clk 0:02:55.1]} 6... Bxc3+ {[%clk
0:02:47.5]} 7. bxc3 {[%clk 0:02:56]} 7... e5 {[%clk 0:02:46.2]} 8. Bd3 {[%clk
0:02:55.8]} 8... Qe7 {[%clk 0:02:44.5]} 9. Ne2 {[%clk 0:02:55.5]} 9... b6 {[%clk
0:02:39.6]} 10. O-O {[%clk 0:02:54.6]} 10... Bb7 {[%clk 0:02:39.9]} 11. d5
{[%clk 0:02:52.8]} 11... Nbd7 {[%clk 0:02:38]} 12. f4 {[%clk 0:02:52.4]} 12...
exf4 {[%clk 0:02:32.8]} 13. Bxf4 {[%clk 0:02:53.3]} 13... Ng4 {[%clk 0:02:33]}
14. e5 {[%clk 0:01:28.7]} 14... dxe5 {[%clk 0:02:28.6]} 15. Bxh7+ {[%clk
0:01:28.4]} 15... Kh8 {[%clk 0:02:29.2]} 16. Qf5 {[%clk 0:01:28.3]} 16... exf4
{[%clk 0:01:34.8]} 17. Rxf4 {[%clk 0:01:19.1]} 17... Nh6 {[%clk 0:01:30.6]} 18.
Qe4 {[%clk 0:01:14.1]} 18... Rae8 {[%clk 0:01:21.7]} 19. Ng3 {[%clk 0:01:09.2]}
19... Qc5+ {[%clk 0:01:19.8]} 0-1

[Event "*** Titled Tuesday Blitz"]
[Site "Chess.com"]
[Date "2021.02.16"]
[Round "1"]
[White "sergiochess83"]
[Black "JimmmyZhang"]
[Result "1-0"]
[WhiteElo "2849"]
[BlackElo "2431"]
[TimeControl "180+1"]
[EndTime "10:04:35 PST"]
[Termination "sergiochess83 won by resignation"]

1. e4 {[%clk 0:03:00.8]} 1... c5 {[%clk 0:02:59.7]} 2. Nf3 {[%clk 0:03:00.4]}
2... e6 {[%clk 0:03:00.1]} 3. d4 {[%clk 0:03:00.3]} 3... cxd4 {[%clk 0:03:00.6]}
4. Nxd4 {[%clk 0:03:01.2]} 4... a6 {[%clk 0:03:00.3]} 5. c4 {[%clk 0:03:01]}
5... Nf6 {[%clk 0:03:00.1]} 6. Nc3 {[%clk 0:03:01.1]} 6... Qc7 {[%clk
0:03:00.6]} 7. a3 {[%clk 0:03:00.3]} 7... d6 {[%clk 0:03:01.1]} 8. Be3 {[%clk
0:02:58.6]} 8... Be7 {[%clk 0:02:59.5]} 9. f3 {[%clk 0:02:59.1]} 9... O-O {[%clk
0:02:59.9]} 10. Be2 {[%clk 0:02:58.8]} 10... Nc6 {[%clk 0:03:00.3]} 11. O-O
{[%clk 0:02:58.7]} 11... b6 {[%clk 0:03:00.8]} 12. Rc1 {[%clk 0:02:48.6]} 12...
Nxd4 {[%clk 0:03:00.2]} 13. Qxd4 {[%clk 0:02:44.8]} 13... Nd7 {[%clk 0:02:57.7]}
14. b4 {[%clk 0:02:43.9]} 14... Bb7 {[%clk 0:02:55.7]} 15. Rfd1 {[%clk
0:02:42.4]} 15... Rfd8 {[%clk 0:02:53.8]} 16. Na4 {[%clk 0:02:30.1]} 16... e5
{[%clk 0:02:45.7]} 17. Qd2 {[%clk 0:02:27.2]} 17... Rab8 {[%clk 0:02:16.7]} 18.
Nc3 {[%clk 0:02:26.1]} 18... Nf6 {[%clk 0:02:14.6]} 19. Nd5 {[%clk 0:02:17.8]}
19... Bxd5 {[%clk 0:02:11.9]} 20. cxd5 {[%clk 0:02:17.1]} 20... Qb7 {[%clk
0:02:12.5]} 21. Rc6 {[%clk 0:02:15.6]} 21... b5 {[%clk 0:02:10.9]} 22. Rdc1
{[%clk 0:02:13.7]} 22... Rd7 {[%clk 0:02:00.2]} 23. Rb6 {[%clk 0:01:54.1]} 23...
Qa8 {[%clk 0:01:58.8]} 24. Rxb8+ {[%clk 0:01:53]} 24... Qxb8 {[%clk 0:01:59.2]}
25. Rc6 {[%clk 0:01:53.4]} 25... Qb7 {[%clk 0:01:57]} 26. Qc3 {[%clk 0:01:49.5]}
26... Ne8 {[%clk 0:01:56.3]} 27. a4 {[%clk 0:01:35.6]} 27... bxa4 {[%clk
0:01:51.7]} 28. Bxa6 {[%clk 0:01:35.2]} 28... Qb8 {[%clk 0:01:33.4]} 29. Rc8
{[%clk 0:01:31.7]} 29... Rd8 {[%clk 0:01:23]} 30. Rxb8 {[%clk 0:01:30.6]} 30...
Rxb8 {[%clk 0:01:23.9]} 31. Qa3 {[%clk 0:01:25.8]} 31... Nc7 {[%clk 0:01:22.3]}
32. Qxa4 {[%clk 0:01:25.4]} 1-0

[Event "*** Titled Tuesday Blitz"]
[Site "Chess.com"]
[Date "2021.02.16"]
[Round "1"]
[White "RD4ever"]
[Black "WeAintSurePal"]
[Result "0-1"]
[WhiteElo "2859"]
[BlackElo "2454"]
[TimeControl "180+1"]
[EndTime "10:04:40 PST"]
[Termination "WeAintSurePal won on time"]

1. d4 {[%clk 0:03:00.9]} 1... Nf6 {[%clk 0:02:58.7]} 2. c4 {[%clk 0:03:01]} 2...
e6 {[%clk 0:02:58.1]} 3. Nf3 {[%clk 0:03:01]} 3... Bb4+ {[%clk 0:02:57.7]} 4.
Bd2 {[%clk 0:03:01.1]} 4... c5 {[%clk 0:02:57.5]} 5. Bxb4 {[%clk 0:02:58.9]}
5... cxb4 {[%clk 0:02:58.4]} 6. a3 {[%clk 0:02:56.7]} 6... bxa3 {[%clk
0:02:57.9]} 7. Rxa3 {[%clk 0:02:54.5]} 7... O-O {[%clk 0:02:56.1]} 8. Nc3 {[%clk
0:02:51.2]} 8... d6 {[%clk 0:02:55]} 9. e3 {[%clk 0:02:48.1]} 9... Nc6 {[%clk
0:02:54]} 10. Be2 {[%clk 0:02:47.7]} 10... a5 {[%clk 0:02:53.2]} 11. O-O {[%clk
0:02:46.7]} 11... e5 {[%clk 0:02:53.5]} 12. Nb5 {[%clk 0:02:40]} 12... e4 {[%clk
0:02:40.8]} 13. Nd2 {[%clk 0:02:39.5]} 13... Re8 {[%clk 0:02:39.9]} 14. c5
{[%clk 0:02:27.3]} 14... dxc5 {[%clk 0:02:37]} 15. dxc5 {[%clk 0:02:20.1]} 15...
Re5 {[%clk 0:02:26]} 16. Nc4 {[%clk 0:00:50.9]} 16... Rd5 {[%clk 0:02:13]} 17.
Qc2 {[%clk 0:00:07.3]} 17... Rxc5 {[%clk 0:02:11.4]} 0-1